Workbook

Sheet TARPON SPRINGS 1ST QTR
A1: COMMODITY | E1: TONNAGE
D2: January | E2: February | F2: March | H2: Quarter Total | I2: REVENUE/TON | J2: PROCESSING COST PER TON | K2: NET PROCEEDS
A3: PLASTIC | D3: 4.4 | E3: 5.49 | F3: 4.4 | H3: =SUM(D3:G3) -> 14.29 | I3: 0 | J3: 123.8 | K3: =SUM(H3*I3)-(H3*J3) -> -1769.102
A4: BROWN GLASS | D4: 2.99 | E4: 3.73 | F4: 2.99 | H4: =SUM(D4:G4) -> 9.71 | I4: 0 | J4: 17.54 | K4: =SUM(H4*I4)-(H4*J4) -> -170.3134
A5: GREEN GLASS | D5: 2.55 | E5: 3.19 | F5: 2.55 | H5: =SUM(D5:F5) -> 8.29 | I5: 0 | J5: 17.54 | K5: =SUM(H5*I5)-(H5*J5) -> -145.4066
A6: CLEAR GLASS | D6: 5.19 | E6: 6.48 | F6: 5.19 | H6: 16.86 | I6: 2 | J6: 17.54 | K6: =SUM(H6*I6)-(H6*J6) -> -262.0044
A7: NEWS TOTAL | D7: 68.68 | E7: 85.68 | F7: 68.56 | H7: 222.92
A8: NEWSPAPER 75% | D8: =D7*0.75 -> 51.51 | E8: =E7*0.75 -> 64.26 | F8: =F7*0.75 -> 51.42 | H8: 167.19 | I8: 15 | J8: 30.56 | K8: =SUM(H8*I8)-(H8*J8) -> -2601.4764
A9: MIXED PAPER 25% | D9: =D7-D8 -> 17.17 | E9: =E7-E8 -> 21.42 | F9: =F7-F8 -> 17.14 | H9: 55.73 | I9: -23 | J9: 30.56 | K9: =SUM(H9*I9)-(H9*J9) -> -2984.8988
A10: ALUMINUM | D10: 2.11 | E10: 2.64 | F10: 2.11 | H10: 6.86 | I10: 460 | J10: 91.42 | K10: =SUM(H10*I10)-(H10*J10) -> 2528.4588
A11: TIN | D11: 2.11 | E11: 2.64 | F11: 2.11 | H11: 6.86 | I11: 0 | J11: 108.28 | K11: =SUM(H11*I11)-(H11*J11) -> -742.8008
A13: TOTAL | D13: =SUM(D3:D7,D10:D11) -> 88.03 | E13: =SUM(E3:E7,E10:E11) -> 109.85 | F13: =SUM(F3:F7,F10:F11) -> 87.91 | G13: =SUM(G3:G7,G10:G11) -> 0 | H13: =SUM(H3:H7,H10:H11) -> 285.79 | K13: =SUM(K3:K12) -> -6147.5436
A15: 1st Quarter Rebate - 2024 | K15: =K13 -> -6147.5436
A17: Residential Garbage | D17: 708.35 | E17: 662.65 | F17: 706.88 | H17: =SUM(D17:F17) -> 2077.88 | I17: Tons
A19: Gulf Rd. Recycle | D19: 3.7 | E19: 3.82 | F19: 3.41 | H19: =SUM(D19:F19) -> 10.93 | I19: Tons
A20: Gulf Rd. Cardboard | D20: 1.77 | E20: 1.72 | F20: 1.12 | H20: =SUM(D20:F20) -> 4.61 | I20: Tons
A22: City of Tarpon Tires | D22: 2.21 | E22: 0 | F22: 0 | H22: =SUM(D22:F22) -> 2.21 | I22: Tons
A24: Levis Recycle | D24: 1.63 | E24: 1.75 | F24: 2.95 | H24: =SUM(D24:F24) -> 6.33 | I24: Tons
A25: Levis Cardboard | D25: The formula for the 8yd cardboard can is as follows;
D26: A yard of cardboard is roughly 26lbs, 26lbs x 8yds = 208lbs. x 2 a week = 416lbs. I can’t say the can is totally full every time,
D27: or is the boxes are broke down, or if its overloaded. (But this figure is just an average)
A28: Tarpon Cleanup | B28: 150.54 | C28: Tons | D28: 0 | E28: 0 | F28: 0 | H28: =SUM(D28:F28) -> 0 | I28: Tons
A34: 996-17884
A35: 996-166829
A36: 996-22772
A38: 996-20008 (tires)
A41: 680.2 | D41: tons

Sheet TARPON SPRINGS 2ND QTR
A1: COMMODITY | E1: TONNAGE
D2: April | E2: May | F2: June | H2: Quarter Total | I2: REVENUE/TON | J2: PROCESSING COST PER TON | K2: NET PROCEEDS
A3: PLASTIC | D3: 4.39 | E3: 5.47 | F3: 4.38 | H3: =SUM(D3:G3) -> 14.24 | I3: 0 | J3: 123.8 | K3: =SUM(H3*I3)-(H3*J3) -> -1762.912
A4: BROWN GLASS | D4: 2.98 | E4: 3.72 | F4: 2.98 | H4: =SUM(D4:G4) -> 9.68 | I4: 0 | J4: 17.54 | K4: =SUM(H4*I4)-(H4*J4) -> -169.7872
A5: GREEN GLASS | D5: 2.54 | E5: 3.17 | F5: 2.54 | H5: =SUM(H3:H4) -> 23.92 | I5: 0 | J5: 17.54 | K5: =SUM(H5*I5)-(H5*J5) -> -419.5568
A6: CLEAR GLASS | D6: 5.17 | E6: 6.45 | F6: 5.16 | H6: =SUM(D6:G6) -> 16.78 | I6: 2 | J6: 17.54 | K6: =SUM(H6*I6)-(H6*J6) -> -260.7612
A7: NEWS TOTAL | D7: 68.41 | E7: 85.25 | F7: 68.25 | H7: =SUM(D7:G7) -> 221.91
A8: NEWSPAPER 75% | D8: =D7*0.75 -> 51.3075 | E8: =E7*0.75 -> 63.9375 | F8: =F7*0.75 -> 51.1875 | H8: =SUM(D8:F8) -> 166.4325 | I8: 15 | J8: 30.56 | K8: =SUM(H8*I8)-(H8*J8) -> -2589.6897
A9: MIXED PAPER 25% | D9: =D7-D8 -> 17.1025 | E9: =E7-E8 -> 21.3125 | F9: =F7-F8 -> 17.0625 | H9: =SUM(D9:F9) -> 55.4775 | I9: -23 | J9: 30.56 | K9: =SUM(H9*I9)-(H9*J9) -> -2971.3749
A10: ALUMINUM | D10: 2.1 | E10: 2.62 | F10: 2.1 | H10: =SUM(D10:F10) -> 6.82 | I10: 460 | J10: 91.42 | K10: =SUM(H10*I10)-(H10*J10) -> 2513.7156
A11: TIN | D11: 2.1 | E11: 2.62 | F11: 2.1 | H11: =SUM(D11:F11) -> 6.82 | I11: 0 | J11: 108.28 | K11: =SUM(H11*I11)-(H11*J11) -> -738.4696
A13: TOTAL | D13: =SUM(D3:D7,D10:D11) -> 87.69 | E13: =SUM(E3:E7,E10:E11) -> 109.3 | F13: =SUM(F3:F7,F10:F11) -> 87.51 | G13: =SUM(G3:G7,G10:G11) -> 0 | H13: =SUM(H3:H7,H10:H11) -> 300.17 | K13: =SUM(K3:K12) -> -6398.8358
A15: 2st Quarter Rebate - 2024 | K15: =K13 -> -6398.8358
A17: Residential Garbage | D17: 684.07 | E17: 706.87 | F17: 686.8 | H17: =SUM(D17:F17) -> 2077.74 | I17: Tons
A19: Gulf Rd. Recycle | D19: 4.48 | E19: 3.17 | F19: 2.86 | H19: =SUM(D19:F19) -> 10.51 | I19: Tons
A20: Gulf Rd. Cardboard | D20: 1.58 | E20: 1.4 | F20: 0.9 | H20: =SUM(D20:G20) -> 3.88 | I20: Tons
A22: City of Tarpon Tires | D22: 2.26 | E22: 0 | F22: 0 | H22: =SUM(D22:F22) -> 2.26 | I22: Tons
A24: Levis Recycle | D24: 1.91 | E24: 2.24 | F24: 1.67 | H24: =SUM(D24:F24) -> 5.82 | I24: Tons
A25: Levis Cardboard | D25: The formula for the 8yd cardboard can is as follows;
D26: A yard of cardboard is roughly 26lbs, 26lbs x 8yds = 208lbs. x 2 a week = 416lbs. I can’t say the can is totally full every time,
D27: or is the boxes are broke down, or if its overloaded. (But this figure is just an average)
A28: Tarpon Cleanup | B28: 150.54 | C28: Tons | D28: 182.38 | E28: 0 | F28: 0 | H28: =SUM(D28:G28) -> 182.38 | I28: April 7th
A34: 996-17884
A35: 996-166829
A36: 996-22772
A38: 996-20008 (tires)

Sheet TARPON SPRINGS 3RD QTR
A1: COMMODITY | E1: TONNAGE
D2: July | E2: August | F2: September | H2: Quarter Total | I2: REVENUE/TON | J2: PROCESSING COST PER TON | K2: NET PROCEEDS
A3: PLASTIC | D3: 4.37 | E3: 5.46 | F3: 3.28 | H3: =SUM(D3:G3) -> 13.11 | I3: 0 | J3: 123.8 | K3: =SUM(H3*I3)-(H3*J3) -> -1623.018
A4: BROWN GLASS | D4: 2.97 | E4: 3.71 | F4: 2.23 | H4: =SUM(D4:G4) -> 8.91 | I4: 0 | J4: 17.54 | K4: =SUM(H4*I4)-(H4*J4) -> -156.2814
A5: GREEN GLASS | D5: 2.54 | E5: 3.16 | F5: 1.9 | H5: =SUM(D5:F5) -> 7.6 | I5: 0 | J5: 17.54 | K5: =SUM(H5*I5)-(H5*J5) -> -133.304
A6: CLEAR GLASS | D6: 5.16 | E6: 6.44 | F6: 3.87 | H6: 15.47 | I6: 2 | J6: 17.54 | K6: =SUM(H6*I6)-(H6*J6) -> -240.4038
A7: NEWS TOTAL | D7: 68.21 | E7: 85.1 | F7: 51.21 | H7: 204.52
A8: NEWSPAPER 75% | D8: =D7*0.75 -> 51.1575 | E8: =E7*0.75 -> 63.825 | F8: =F7*0.75 -> 38.4075 | H8: 153.39 | I8: 15 | J8: 30.56 | K8: =SUM(H8*I8)-(H8*J8) -> -2386.7484
A9: MIXED PAPER 25% | D9: =D7-D8 -> 17.0525 | E9: =E7-E8 -> 21.275 | F9: =F7-F8 -> 12.8025 | H9: 51.13 | I9: -23 | J9: 30.56 | K9: =SUM(H9*I9)-(H9*J9) -> -2738.5228
A10: ALUMINUM | D10: 2.1 | E10: 2.62 | F10: 1.58 | H10: 6.3 | I10: 460 | J10: 91.42 | K10: =SUM(H10*I10)-(H10*J10) -> 2322.054
A11: TIN | D11: 2.1 | E11: 2.62 | F11: 1.58 | H11: 6.3 | I11: 0 | J11: 108.28 | K11: =SUM(H11*I11)-(H11*J11) -> -682.164
A13: TOTAL | D13: =SUM(D3:D7,D10:D11) -> 87.45 | E13: =SUM(E3:E7,E10:E11) -> 109.11 | F13: =SUM(F3:F7,F10:F11) -> 65.65 | G13: =SUM(G3:G7,G10:G11) -> 0 | H13: =SUM(H3:H7,H10:H11) -> 262.21 | K13: =SUM(K3:K12) -> -5638.3884
F14: *Hurricane Sept 26th*
A15: 3st Quarter Rebate - 2024 | K15: =K13 -> -5638.3884
A17: Residential Garbage | D17: 707.83 | E17: 714.9 | F17: 668.78 | H17: =SUM(D17:F17) -> 2091.51 | I17: Tons
A19: Gulf Rd. Recycle | D19: 3.41 | E19: 2.65 | F19: 3.54 | H19: =SUM(D19:F19) -> 9.6 | I19: Tons
A20: Gulf Rd. Cardboard | D20: 0.96 | E20: 1.43 | F20: 0.47 | H20: =SUM(D20:G20) -> 2.86 | I20: Tons
A22: City of Tarpon Tires | D22: 0 | E22: 0 | F22: 2.47 | H22: =SUM(D22:F22) -> 2.47 | I22: Tons
A24: Levis Recycle | D24: 2.04 | E24: 1.45 | F24: 1.71 | H24: =SUM(D24:F24) -> 5.2 | I24: Tons
A25: Levis Cardboard | D25: The formula for the 8yd cardboard can is as follows;
D26: A yard of cardboard is roughly 26lbs, 26lbs x 8yds = 208lbs. x 2 a week = 416lbs. I can’t say the can is totally full every time,
D27: or is the boxes are broke down, or if its overloaded. (But this figure is just an average)
A28: Tarpon Cleanup | B28: 150.54 | C28: Tons | D28: 0 | E28: 0 | F28: 0 | H28: =SUM(D28:F28) -> 0
A35: 996-17884
A36: 996-166829
A37: 996-22772
A39: 996-20008 (tires)
A40: 996-230236 (tires new)

Sheet TARPON SPRINGS 4TH QTR
A1: COMMODITY | E1: TONNAGE
D2: October | E2: November | F2: December | H2: Quarter Total | I2: REVENUE/TON | J2: PROCESSING COST PER TON | K2: NET PROCEEDS
A3: PLASTIC | D3: 3.35 | E3: 4.35 | F3: 4.38 | H3: =SUM(D3:G3) -> 12.08 | I3: 0 | J3: 123.8 | K3: =SUM(H3*I3)-(H3*J3) -> -1495.504
A4: BROWN GLASS | D4: 2.27 | E4: 2.96 | F4: 2.98 | H4: =SUM(D4:G4) -> 8.21 | I4: 0 | J4: 17.54 | K4: =SUM(H4*I4)-(H4*J4) -> -144.0034
A5: GREEN GLASS | D5: 1.94 | E5: 2.52 | F5: 2.54 | H5: =SUM(D5:F5) -> 7 | I5: 0 | J5: 17.54 | K5: =SUM(H5*I5)-(H5*J5) -> -122.78
A6: CLEAR GLASS | D6: 3.95 | E6: 5.13 | F6: 5.17 | H6: 14.25 | I6: 2 | J6: 17.54 | K6: =SUM(H6*I6)-(H6*J6) -> -221.445
D7: 52.18 | E7: 67.86 | F7: 68.29 | H7: 188.33
A8: NEWSPAPER 75% | D8: =D7*0.75 -> 39.135 | E8: =E7*0.75 -> 50.895 | F8: =F7*0.75 -> 51.2175 | H8: 141.2475 | I8: 15 | J8: 30.56 | K8: =SUM(H8*I8)-(H8*J8) -> -2197.8111
A9: MIXED PAPER 25% | D9: =D7-D8 -> 13.045 | E9: =E7-E8 -> 16.965 | F9: =F7-F8 -> 17.0725 | H9: 47.0825 | I9: -23 | J9: 30.56 | K9: =SUM(H9*I9)-(H9*J9) -> -2521.7387
A10: ALUMINUM | D10: 1.61 | E10: 2.09 | F10: 2.1 | H10: 5.8 | I10: 460 | J10: 91.42 | K10: =SUM(H10*I10)-(H10*J10) -> 2137.764
A11: TIN | D11: 1.61 | E11: 2.09 | F11: 2.1 | H11: 5.8 | I11: 0 | J11: 108.28 | K11: =SUM(H11*I11)-(H11*J11) -> -628.024
A13: TOTAL | D13: =SUM(D3:D7,D10:D11) -> 66.91 | E13: =SUM(E3:E7,E10:E11) -> 87 | F13: =SUM(F3:F7,F10:F11) -> 87.56 | G13: =SUM(G3:G7,G10:G11) -> 0 | H13: =SUM(H3:H7,H10:H11) -> 241.47 | K13: =SUM(K3:K12) -> -5193.5422
A15: 4st Quarter Rebate - 2024 | K15: =K13 -> -5193.5422
A17: Residential Garbage | D17: 966.3 | E17: 935.13 | F17: 720.3 | H17: =SUM(D17:G17) -> 2621.73 | I17: Tons ***Hurricanes Sept 26 & Oct. 10th***
A19: Gulf Rd. Recycle | D19: 2.6 | E19: 3.27 | F19: 3.03 | H19: =SUM(D19:G19) -> 8.9 | I19: Tons
A20: Gulf Rd. Cardboard | D20: 2.98 | E20: 1.4 | F20: 0.5 | H20: =SUM(D20:G20) -> 4.88 | I20: Tons
A22: City of Tarpon Tires | D22: 2.45 | E22: 0 | F22: 0 | H22: =SUM(D22:F22) -> 2.45 | I22: Tons
A24: Levis Recycle | D24: 2.9 | E24: 0.8 | F24: 0.5 | H24: =SUM(D24:F24) -> 4.2 | I24: Tons
A25: Levis Cardboard | D25: The formula for the 8yd cardboard can is as follows;
D26: A yard of cardboard is roughly 26lbs, 26lbs x 8yds = 208lbs. x 2 a week = 416lbs. I can’t say the can is totally full every time,
D27: or is the boxes are broke down, or if its overloaded. (But this figure is just an average)
A28: ****Tarpon Cleanup | D28: 0 | E28: 0 | F28: 0 | H28: =SUM(D28:G28) -> 0 | I28: Tons ***Hurricanes Sept 26 & Oct. 10th***
A35: 996-17884
A36: 996-166829
A37: 996-22772
A39: 996-20008 (tires)
